bitfinex-derivatives/quotes_BTCF0:USTF0_20241231
["timestamp","ask_amount","ask_price","bid_price","bid_amount"]
[1735610200332,0.3608,92530.0,92516.0,0.3608]
[1735610200530,0.11244671,92523.0,92516.0,0.3608]
[1735610201439,0.11244671,92523.0,92516.0,0.3618]
[1735610201630,0.11244671,92523.0,92516.0,0.3628]
[1735610203135,0.11244671,92523.0,92516.0,0.3618]
[1735610203329,0.11244671,92523.0,92516.0,0.3628]
[1735610203934,0.11444671,92523.0,92518.0,0.3608]
[1735610204125,0.002,92523.0,92518.0,0.3608]
[1735610204525,0.01781782,92523.0,92518.0,0.3608]
[1735610204726,0.001,92523.0,92518.0,0.3608]
[1735610205032,0.002,92523.0,92518.0,0.3608]
[1735610205338,0.003,92523.0,92518.0,0.3608]
[1735610205836,0.01685735,92530.0,92521.0,0.3608]
[1735610206036,0.3608,92539.0,92529.0,0.3608]
[1735610206735,0.3608,92539.0,92530.0,1.5]
[1735610207536,0.3618,92539.0,92530.0,1.5]
[1735610207935,0.37843665,92539.0,92530.0,1.5]
[1735610208136,0.38243665,92539.0,92530.0,1.5]
[1735610209137,0.37843665,92539.0,92529.0,0.3608]
[1735610209342,0.38143665,92539.0,92529.0,0.3608]
[1735610210337,0.38043665,92539.0,92529.0,0.3608]
[1735610210644,0.38143665,92539.0,92529.0,0.3608]
[1735610213848,0.0561,92538.0,92529.0,0.3608]
[1735610214533,0.0561,92538.0,92513.0,0.0571]
[1735610214738,0.11244671,92530.0,92513.0,0.0571]
[1735610216038,0.11344671,92530.0,92513.0,0.0571]
[1735610216437,0.11344671,92530.0,92522.0,0.3608]
[1735610218248,0.11244671,92530.0,92522.0,0.3608]
[1735610219251,0.08768274,92538.0,92522.0,0.3608]
[1735610219437,0.06804371,92538.0,92522.0,0.3608]
[1735610221043,0.94223569,92539.0,92522.0,0.3608]
[1735610221248,0.94223569,92539.0,92523.0,0.0541]
[1735610221249,0.95277574,92539.0,92523.0,0.0541]
[1735610221748,0.89397574,92539.0,92523.0,1.5541]
[1735610221950,0.89397574,92539.0,92532.0,0.3608]
[1735610221951,0.86239665,92539.0,92532.0,0.3608]
[1735610222139,0.86239665,92539.0,92533.0,0.0582]
[1735610222549,0.86339665,92539.0,92533.0,0.0582]
[1735610224052,0.86639665,92539.0,92533.0,0.0582]
[1735610224649,0.86239665,92539.0,92533.0,0.0582]
[1735610225345,0.86739665,92539.0,92533.0,0.0582]
[1735610226654,0.50659665,92539.0,92533.0,0.0582]
[1735610226842,0.50859665,92539.0,92533.0,0.0582]
[1735610227844,0.50359665,92539.0,92533.0,0.0582]
[1735610228354,0.50859665,92539.0,92533.0,0.0582]
[1735610229648,0.50659665,92539.0,92533.0,0.0582]
[1735610230148,0.02163665,92539.0,92533.0,0.0582]
[1735610230748,0.02363665,92539.0,92533.0,0.0582]
[1735610232056,0.01863665,92539.0,92533.0,0.0582]
[1735610232755,0.01963665,92539.0,92533.0,0.0582]
[1735610233163,0.01763665,92539.0,92533.0,0.0582]
[1735610234356,0.01963665,92539.0,92533.0,0.0582]
[1735610234954,0.01763665,92539.0,92533.0,0.0582]
[1735610237653,0.01963665,92539.0,92533.0,0.0582]
[1735610237866,0.003,92539.0,92533.0,0.0582]
[1735610238459,0.001,92539.0,92533.0,0.0582]
[1735610240060,0.001,92539.0,92523.0,0.0541]
[1735610240269,0.07379695,92533.0,92523.0,0.0541]
[1735610241460,0.07379695,92533.0,92523.0,0.0551]
[1735610243752,0.07379695,92533.0,92523.0,0.0561]
[1735610244359,0.11242596,92540.0,92523.0,0.0541]
[1735610244657,0.11242596,92533.0,92523.0,0.0571]
[1735610245858,0.11242596,92533.0,92523.0,0.0561]
[1735610247471,0.11242596,92540.0,92523.0,0.0561]
[1735610247863,0.37704504,92541.0,92532.0,0.3608]
[1735610248069,0.37704504,92541.0,92533.0,0.1156]
[1735610249774,0.01624504,92541.0,92533.0,0.1166]
[1735610249966,0.11242596,92542.0,92533.0,0.001]
[1735610249967,0.47322596,92542.0,92533.0,0.001]
[1735610250567,0.47322596,92542.0,92523.0,0.4159]
[1735610250870,0.47322596,92542.0,92496.0,1.82321229]
[1735610250871,0.3608,92528.0,92514.0,0.336435]
[1735610251062,0.11242596,92524.0,92514.0,0.336435]
[1735610251263,0.3608,92520.0,92506.0,0.3608]
[1735610251461,0.58565192,92520.0,92506.0,0.3608]
[1735610251765,0.58565192,92520.0,92501.0,0.1161]
[1735610251766,0.3608,92512.0,92501.0,0.04241689]
[1735610251970,0.11242596,92511.0,92501.0,0.04241689]
[1735610252378,0.11242596,92511.0,92506.0,0.004]
[1735610252670,0.0588,92510.0,92487.0,0.3608]
[1735610252859,0.11242596,92497.0,92487.0,0.3608]
[1735610254068,0.11242596,92497.0,92487.0,0.3628]
[1735610255070,0.11242596,92497.0,92487.0,0.002]
[1735610255670,0.11242596,92497.0,92483.0,0.06]
[1735610256868,0.11242596,92497.0,92483.0,0.061]
[1735610258375,0.12811116,92497.0,92483.0,0.061]
[1735610258572,0.12811116,92497.0,92488.0,0.3608]
[1735610260277,0.12811116,92497.0,92488.0,0.3618]
[1735610261677,0.12911116,92497.0,92488.0,0.3618]
[1735610262384,0.12811116,92497.0,92488.0,0.3618]
[1735610268579,0.12811116,92497.0,92488.0,0.001]
[1735610268781,0.3608,92492.0,92483.0,0.06]
[1735610269680,0.36074883,92492.0,92483.0,0.06]
[1735610271777,0.36074883,92492.0,92483.0,0.061]
[1735610274489,0.12811116,92497.0,92483.0,0.061]
[1735610275787,0.12811116,92497.0,92483.0,0.06]
[1735610275990,0.12811116,92497.0,92483.0,0.061]
[1735610277990,0.12811116,92497.0,92483.0,0.4218]
[1735610278180,0.07385406,92493.0,92483.0,0.4218]
[1735610278374,0.07385406,92493.0,92483.0,0.4208]
[1735610278581,0.07385406,92493.0,92484.0,1.5]
[1735610279089,0.07385406,92493.0,92483.0,0.4208]
[1735610282088,0.07385406,92493.0,92491.0,0.3608]
[1735610282292,0.36259095,92500.0,92491.0,0.3608]
[1735610283787,0.0146905,92500.0,92499.0,0.3608]
[1735610283987,0.485,92509.0,92499.0,0.3608]
[1735610284191,0.485,92509.0,92508.0,0.3608]
[1735610284398,0.49919581,92509.0,92508.0,0.3608]
[1735610285195,0.50519581,92509.0,92508.0,0.3608]
[1735610285599,0.50819581,92509.0,92508.0,0.3608]
[1735610285897,0.51119581,92509.0,92508.0,0.3608]
[1735610287493,0.50219581,92509.0,92508.0,0.3608]
[1735610287699,0.51119581,92509.0,92508.0,0.3608]
[1735610289096,0.51219581,92509.0,92508.0,0.3608]
[1735610289792,0.51119581,92509.0,92508.0,0.3608]
[1735610290595,0.51119581,92509.0,92508.0,0.33790999]
[1735610290801,0.51119581,92509.0,92487.0,0.25824073]
[1735610291097,0.11248955,92497.0,92487.0,0.25824073]
[1735610291495,0.11248955,92497.0,92486.0,0.3608]
[1735610292289,0.11248955,92497.0,92487.0,0.001]
[1735610293095,0.11248955,92497.0,92486.0,0.3618]
[1735610293993,0.12720833,92497.0,92487.0,0.001]
[1735610295298,0.13020833,92497.0,92487.0,0.001]
[1735610295507,0.13020833,92497.0,92486.0,0.3608]
[1735610296596,0.3608,92492.0,92482.0,0.0605]
[1735610296800,0.3608,92492.0,92477.0,0.0551]
[1735610297102,0.3608,92492.0,92469.0,0.114]
[1735610297103,0.3608,92483.0,92469.0,0.114]
[1735610297298,0.11248955,92479.0,92469.0,0.055]
[1735610297495,0.11248955,92479.0,92471.0,0.3608]
[1735610299001,0.11248955,92479.0,92477.0,0.002]
[1735610299199,0.2249791,92490.0,92477.0,0.002]
[1735610299600,0.2249791,92490.0,92471.0,0.3608]
[1735610299801,0.11248955,92481.0,92471.0,0.3618]
[1735610300497,0.3608,92479.0,92471.0,0.3608]
[1735610301199,0.3608,92479.0,92470.0,0.059]
[1735610302201,0.3608,92479.0,92471.0,0.001]
[1735610302792,0.3608,92479.0,92470.0,0.059]
[1735610302793,0.11248955,92481.0,92470.0,0.059]
[1735610302990,0.11248955,92481.0,92470.0,0.06]
[1735610303201,0.3608,92491.0,92474.0,0.3608]
[1735610303488,0.11248955,92490.0,92484.0,0.3608]
[1735610303689,0.11248955,92490.0,92485.0,1.5]
[1735610304088,0.11248955,92490.0,92486.0,0.0572]
[1735610304407,0.3608,92491.0,92486.0,0.0572]
[1735610304604,0.37536403,92491.0,92486.0,0.0572]
[1735610304901,0.006,92490.0,92484.0,0.3608]
[1735610305703,0.007,92490.0,92484.0,0.3608]
[1735610306201,0.007,92490.0,92475.0,0.1118]
[1735610306407,0.11248955,92485.0,92475.0,0.1118]
[1735610307908,0.11448955,92485.0,92475.0,0.1118]
[1735610309907,0.11448955,92485.0,92475.0,0.1128]
[1735610310607,0.11248955,92485.0,92475.0,0.1128]
[1735610310807,0.11348955,92485.0,92475.0,0.1118]
[1735610312909,0.3608,92480.0,92475.0,0.1118]
[1735610313311,0.3608,92480.0,92466.0,0.3608]
[1735610313903,0.3608,92480.0,92475.0,0.001]
[1735610315111,0.001,92480.0,92475.0,0.001]
[1735610316013,0.001,92480.0,92470.0,0.06]
[1735610316713,0.001,92480.0,92470.0,0.059]
[1735610317612,0.11248955,92485.0,92470.0,0.06]
[1735610318914,0.11248955,92485.0,92470.0,0.059]
[1735610319115,0.11248955,92485.0,92470.0,0.06]
[1735610320217,0.0738692,92480.0,92470.0,0.06]
[1735610322010,0.0738692,92480.0,92470.0,0.059]
[1735610322221,0.0738692,92480.0,92470.0,0.06]
[1735610322524,0.1477384,92480.0,92470.0,0.06]
[1735610325821,0.16135863,92480.0,92470.0,0.059]
[1735610326015,0.16135863,92480.0,92470.0,0.001]
[1735610332134,0.16135863,92480.0,92466.0,0.19382081]
[1735610333032,0.16135863,92480.0,92470.0,0.001]
[1735610333725,0.16135863,92480.0,92468.0,0.3608]
[1735610333925,0.3608,92469.0,92459.0,0.17488076]
[1735610334237,0.5824076,92469.0,92452.0,0.56324734]
[1735610334534,0.1477384,92462.0,92452.0,0.50907435]
[1735610335426,0.3608,92455.0,92452.0,0.14827435]
[1735610336132,0.3608,92455.0,92441.0,0.3608]
[1735610336329,0.11266127,92451.0,92441.0,0.3608]
[1735610337735,0.11366127,92451.0,92441.0,0.3608]
[1735610338633,0.11366127,92451.0,92440.0,0.12099893]
[1735610338930,0.11366127,92451.0,92436.0,0.1689]
[1735610339136,0.11366127,92451.0,92441.0,0.003]
[1735610340139,0.11366127,92451.0,92440.0,0.001]
[1735610340328,0.11266127,92451.0,92440.0,0.001]
[1735610342243,0.48676,92452.0,92447.0,0.3608]
[1735610342539,0.48528,92452.0,92447.0,0.3608]
[1735610343535,0.48628,92452.0,92447.0,0.3608]
[1735610344939,0.48928,92452.0,92447.0,0.3608]
[1735610350740,0.004,92452.0,92447.0,0.3608]
[1735610350942,0.004,92452.0,92450.0,0.414977]
[1735610351143,0.71805961,92478.0,92452.0,0.054176]
[1735610351342,0.71805961,92478.0,92461.0,0.3608]
[1735610351543,0.35725961,92478.0,92470.0,0.3608]
[1735610351753,0.01306083,92478.0,92470.0,0.3608]
[1735610352049,0.1809131,92482.0,92470.0,0.3608]
[1735610352550,0.11266127,92480.0,92470.0,0.3608]
[1735610352946,0.48684,92483.0,92470.0,0.414965]
[1735610353145,0.11266127,92480.0,92470.0,0.414965]
[1735610353843,0.11266127,92480.0,92470.0,0.3608]
[1735610353844,0.001,92478.0,92470.0,0.3608]
[1735610354952,0.001,92478.0,92470.0,0.3618]
[1735610355454,0.12592334,92480.0,92470.0,0.3628]
[1735610356040,0.12592334,92480.0,92470.0,0.3618]
[1735610356266,0.12592334,92480.0,92470.0,0.3628]
[1735610356754,0.12592334,92480.0,92470.0,0.3618]
[1735610358858,0.01326207,92480.0,92470.0,0.3618]
[1735610359048,0.48684,92483.0,92479.0,0.3608]
[1735610359250,0.48536,92483.0,92480.0,0.1654]
[1735610360352,0.48636,92483.0,92480.0,0.1654]
[1735610360653,0.49955375,92483.0,92480.0,0.1654]
[1735610360863,0.50355375,92483.0,92480.0,0.1654]
[1735610361250,0.50355375,92483.0,92480.0,0.0545]
[1735610361743,0.50355375,92483.0,92479.0,0.3608]
[1735610361945,0.50355375,92483.0,92479.0,0.32373275]
[1735610362350,0.50255375,92483.0,92479.0,0.32373275]
[1735610362551,0.50455375,92483.0,92479.0,0.32373275]
[1735610363152,0.50255375,92483.0,92479.0,0.32373275]
[1735610363353,0.50355375,92483.0,92479.0,0.32373275]
[1735610363549,0.3608,92481.0,92464.0,0.1074]
[1735610363856,0.11266127,92480.0,92464.0,0.1074]
[1735610364255,0.11266127,92480.0,92470.0,0.3608]
[1735610365462,0.11366127,92480.0,92470.0,0.3608]
[1735610367056,0.11266127,92480.0,92470.0,0.3608]
[1735610367254,0.11366127,92480.0,92470.0,0.3608]
[1735610367455,0.11366127,92480.0,92464.0,0.1074]
[1735610367654,0.11266127,92474.0,92464.0,0.1074]
[1735610368863,0.11366127,92480.0,92464.0,0.1074]
[1735610369956,0.11266127,92480.0,92464.0,0.1074]
[1735610370367,0.11266127,92480.0,92464.0,0.1084]
[1735610373059,0.11266127,92480.0,92464.0,0.1074]
[1735610373258,0.3608,92481.0,92464.0,0.1084]
[1735610373461,0.3608,92481.0,92470.0,0.414966]
[1735610374064,0.49995376,92483.0,92481.0,0.054159]
[1735610374271,0.3608,92499.0,92482.0,0.1575]
[1735610374570,0.37386181,92499.0,92491.0,0.054153]
[1735610374760,0.37386181,92499.0,92484.0,0.054157]
[1735610374966,0.11266127,92494.0,92484.0,0.054157]
[1735610375278,0.37386181,92499.0,92484.0,0.054157]
[1735610375574,0.37386181,92499.0,92482.0,1.6575]
[1735610375766,0.37386181,92499.0,92486.0,0.054156]
[1735610376364,0.37386181,92499.0,92482.0,1.6575]
[1735610376565,0.002,92483.0,92482.0,1.6575]
[1735610377266,0.11266127,92492.0,92482.0,1.6575]
[1735610377470,0.38586181,92499.0,92482.0,0.1575]
[1735610377861,0.37686181,92499.0,92482.0,0.1575]
[1735610378065,0.11266127,92492.0,92482.0,0.1575]
[1735610378368,0.002,92483.0,92482.0,0.1575]
[1735610380069,0.11266127,92492.0,92482.0,0.1575]
[1735610380276,0.38186181,92499.0,92487.0,0.3608]
[1735610380569,0.37986181,92499.0,92487.0,0.3608]
[1735610380764,0.005,92492.0,92487.0,0.3608]
[1735610381280,0.37386181,92499.0,92487.0,0.3608]
[1735610381475,0.38486181,92499.0,92487.0,0.3608]
[1735610381874,0.37686181,92499.0,92487.0,0.3608]
[1735610382068,0.007,92492.0,92487.0,0.3608]
[1735610383276,0.01,92492.0,92487.0,0.3608]
[1735610383579,0.003,92492.0,92487.0,0.3608]
[1735610384472,0.01,92492.0,92487.0,0.3608]
[1735610397781,0.01,92492.0,92488.0,1.5]
[1735610399389,0.01,92492.0,92487.0,0.3608]
[1735610399780,0.011,92492.0,92487.0,0.3608]
[1735610400190,0.3608,92509.0,92487.0,0.6608]
[1735610400490,0.3608,92509.0,92500.0,0.054148]
[1735610400691,0.3608,92509.0,92501.0,0.1614]
[1735610400880,0.3608,92509.0,92501.0,0.1095]
[1735610401189,0.3608,92509.0,92501.0,0.0564]
[1735610401784,0.3608,92509.0,92495.0,0.3608]
[1735610401983,0.3608,92509.0,92488.0,0.105]
[1735610401984,0.3608,92501.0,92488.0,0.105]
[1735610403478,0.3608,92501.0,92488.0,0.106]
[1735610403688,0.3608,92493.0,92488.0,0.001]
[1735610403987,0.3608,92493.0,92468.0,0.3608]
[1735610403988,0.0528,92492.0,92484.0,0.20927416]
[1735610404285,0.3608,92485.0,92468.0,0.3608]
[1735610404486,0.11266127,92480.0,92468.0,0.3608]
[1735610404689,0.3608,92485.0,92468.0,0.3608]
[1735610405079,0.3608,92477.0,92468.0,0.3608]
[1735610405480,0.3608,92477.0,92469.0,0.1041]
[1735610405980,0.3608,92485.0,92469.0,0.1041]
[1735610406180,0.4866,92491.0,92478.0,0.3608]
[1735610406380,0.48516,92491.0,92479.0,0.0546]
[1735610406888,0.48516,92491.0,92486.0,0.054156]
[1735610407090,0.49807381,92491.0,92487.0,0.1031]
[1735610407285,0.49807381,92491.0,92487.0,0.157255]
[1735610407486,0.49807381,92491.0,92488.0,0.054155]
[1735610407686,0.09973533,92496.0,92487.0,0.1031]
[1735610407994,0.09973533,92496.0,92495.0,0.054151]
[1735610408186,0.3608,92497.0,92495.0,0.054151]
[1735610408382,0.01293537,92497.0,92495.0,0.3608]
[1735610408588,0.87928779,92518.0,92495.0,0.3608]
[1735610408885,0.846,92518.0,92502.0,0.054147]
[1735610409094,0.846,92518.0,92503.0,0.0519]
[1735610409683,0.848,92518.0,92503.0,0.0519]
[1735610409883,0.848,92518.0,92504.0,1.5]
[1735610410293,0.851,92518.0,92504.0,1.5]
[1735610410786,0.851,92518.0,92507.0,0.3608]
[1735610411087,0.853,92518.0,92507.0,0.3608]
[1735610411495,0.86562398,92518.0,92507.0,0.3608]
[1735610412493,0.86662398,92518.0,92507.0,0.3608]
[1735610412695,0.86462398,92518.0,92507.0,0.3608]
[1735610412889,0.50582398,92518.0,92507.0,0.3608]
[1735610413087,0.50682398,92518.0,92507.0,0.3618]
[1735610413595,0.50782398,92518.0,92507.0,0.3618]
[1735610419397,0.86862398,92518.0,92507.0,0.3618]
[1735610421895,0.50782398,92518.0,92507.0,0.3618]
[1735610422890,0.50482398,92518.0,92507.0,0.3618]
[1735610423097,0.50782398,92518.0,92507.0,0.3618]
[1735610423601,0.32040665,92518.0,92507.0,0.3618]
[1735610425792,0.31940665,92518.0,92507.0,0.3608]
[1735610425991,0.31840665,92518.0,92507.0,0.3608]
[1735610427506,0.31640665,92518.0,92507.0,0.3608]
[1735610427701,0.31840665,92518.0,92507.0,0.3608]
[1735610443709,0.02062398,92518.0,92507.0,0.3608]
[1735610445397,0.02062398,92518.0,92503.0,0.0519]
[1735610445711,0.3608,92505.0,92495.0,0.61948312]
[1735610446012,0.0567,92504.0,92495.0,0.25868312]
[1735610446208,0.1619,92504.0,92495.0,0.25868312]
[1735610446413,0.3608,92497.0,92488.0,0.3608]
[1735610446707,0.3608,92497.0,92487.0,0.25868312]
[1735610447301,0.3608,92497.0,92487.0,0.25080301]
[1735610447502,0.6608,92497.0,92487.0,0.24480301]
[1735610448002,0.3608,92489.0,92480.0,0.32323327]
[1735610448199,0.3608,92489.0,92462.0,0.1132]
[1735610448200,0.84592,92489.0,92462.0,0.1132]
[1735610448395,0.87910608,92489.0,92462.0,0.1132]
[1735610449308,0.86716113,92489.0,92487.0,0.002]
[1735610449509,0.09974984,92488.0,92487.0,0.002]
[1735610449895,0.09974984,92488.0,92462.0,0.1132]
[1735610450101,0.09974984,92488.0,92469.0,0.3628]
[1735610450302,0.11257518,92480.0,92469.0,0.3628]
[1735610450812,0.11257518,92480.0,92469.0,0.3608]
[1735610451116,0.11257518,92480.0,92478.0,0.3608]
[1735610451313,0.002,92488.0,92478.0,0.3608]
[1735610451314,0.11457518,92488.0,92478.0,0.3608]
[1735610451717,0.11457518,92488.0,92479.0,1.5]
[1735610452008,0.12693633,92488.0,92479.0,1.5]
[1735610452210,0.002,92480.0,92479.0,1.5]
[1735610452403,0.002,92480.0,92478.0,0.30765]
[1735610453825,0.1059,92486.0,92478.0,0.30765]
[1735610453997,0.3608,92481.0,92469.0,0.32671]
[1735610454199,0.3608,92473.0,92454.0,0.3608]
[1735610454404,0.11257518,92464.0,92454.0,0.3608]
[1735610454612,0.3608,92458.0,92446.0,0.1132]
[1735610454813,0.11257518,92456.0,92446.0,0.1132]
[1735610456903,0.11257518,92456.0,92446.0,0.1162]
[1735610457215,0.11357518,92456.0,92446.0,0.1162]
[1735610457415,0.11457518,92456.0,92446.0,0.1162]
[1735610457814,0.11357518,92456.0,92446.0,0.1162]
[1735610458012,0.11257518,92456.0,92446.0,0.1162]
[1735610458205,0.01505733,92456.0,92451.0,0.3608]
[1735610458407,0.11257518,92470.0,92451.0,0.3608]
[1735610458605,0.001,92456.0,92451.0,0.3608]
[1735610459617,0.001,92456.0,92452.0,1.5]
[1735610460222,0.3608,92460.0,92452.0,1.5]
[1735610461017,0.3608,92460.0,92452.0,1.503]
[1735610461018,0.001,92456.0,92452.0,1.503]
[1735610461218,0.001,92456.0,92452.0,0.003]
[1735610461419,0.3618,92460.0,92452.0,0.003]
[1735610462021,0.37746689,92460.0,92452.0,0.003]
[1735610462413,0.37746689,92460.0,92446.0,0.1132]
[1735610462615,0.11257518,92456.0,92452.0,0.002]
[1735610462916,0.37746689,92460.0,92452.0,0.002]
[1735610463123,0.37646689,92460.0,92452.0,0.002]
[1735610463323,0.37646689,92460.0,92452.0,0.001]
[1735610464022,0.37646689,92460.0,92441.0,0.3608]
[1735610464224,0.11257518,92451.0,92441.0,0.3608]
[1735610464711,0.002,92456.0,92441.0,0.3608]
[1735610465113,0.49044208,92460.0,92441.0,0.3608]
[1735610465321,0.11257518,92451.0,92441.0,0.3608]
[1735610466118,0.48904207,92460.0,92441.0,0.3608]
[1735610466314,0.3608,92473.0,92450.0,0.47337518]
[1735610466520,0.3608,92473.0,92461.0,0.054171]
[1735610466716,0.01517786,92476.0,92473.0,0.054164]
[1735610466911,0.48512,92489.0,92474.0,0.0555]
[1735610467122,0.11257518,92483.0,92474.0,0.0555]
[1735610467325,0.48512,92489.0,92474.0,0.0555]
[1735610467326,0.48652001,92489.0,92474.0,0.0555]
[1735610467625,0.48512,92489.0,92474.0,0.109663]
[1735610468016,0.48612,92489.0,92474.0,0.109663]
[1735610468211,0.3608,92480.0,92474.0,0.0555]
[1735610469018,0.3608,92480.0,92474.0,1.5555]
[1735610469227,0.3608,92480.0,92474.0,0.0555]
[1735610469529,0.3608,92480.0,92474.0,0.0575]
[1735610469728,0.11257518,92484.0,92474.0,0.0575]
[1735610469928,0.11257518,92484.0,92474.0,0.002]
[1735610470126,0.3608,92480.0,92474.0,0.002]
[1735610472823,0.3608,92480.0,92473.0,0.3608]
[1735610472824,0.50209818,92489.0,92473.0,0.3608]
[1735610473022,0.50065818,92489.0,92473.0,0.3608]
[1735610473432,0.50065818,92489.0,92482.0,0.3608]
[1735610473624,0.50065818,92489.0,92483.0,0.1067]
[1735610473833,0.50065818,92489.0,92483.0,0.1605]
[1735610474818,0.50265818,92489.0,92483.0,0.1605]
[1735610476032,0.50265818,92489.0,92483.0,0.1615]
[1735610476345,0.50265818,92489.0,92484.0,1.5]
[1735610476519,0.50265818,92489.0,92483.0,0.1615]
[1735610477229,0.3608,92487.0,92483.0,0.001]
[1735610478520,0.50205819,92489.0,92483.0,0.001]
[1735610478727,0.3608,92487.0,92483.0,0.001]
[1735610479030,0.3608,92487.0,92474.0,0.3608]
[1735610479224,0.3608,92487.0,92483.0,0.003]
[1735610479225,0.11257518,92484.0,92483.0,0.003]
[1735610479423,0.3608,92487.0,92483.0,0.003]
[1735610480027,0.3608,92487.0,92483.0,0.002]
[1735610480826,0.50205819,92489.0,92483.0,0.002]
[1735610481031,0.50065818,92489.0,92483.0,0.001]
[1735610482536,0.50065818,92489.0,92483.0,0.002]
[1735610483223,0.50065818,92489.0,92472.0,0.4159]
[1735610483423,0.50065818,92489.0,92483.0,0.002]
[1735610484028,0.50065818,92489.0,92473.0,0.054164]
[1735610484238,0.50065818,92489.0,92483.0,0.002]
[1735610484426,0.50165818,92489.0,92483.0,0.002]
[1735610485338,0.50165818,92489.0,92484.0,0.0538]
[1735610485832,0.50165818,92489.0,92485.0,1.5]
[1735610486230,0.50065818,92489.0,92484.0,0.0538]
[1735610486638,0.50065818,92489.0,92485.0,1.5]
[1735610486940,0.50165818,92489.0,92483.0,0.002]
[1735610487135,0.50165818,92489.0,92482.0,0.3608]
[1735610487136,0.0568,92488.0,92482.0,0.3608]
[1735610487330,0.0568,92488.0,92485.0,0.003]
[1735610487530,0.0568,92488.0,92472.0,0.24803149]
[1735610487737,0.47337518,92482.0,92472.0,0.19293149]
[1735610488036,0.47337518,92482.0,92464.0,0.19293149]
[1735610488631,0.11257518,92474.0,92464.0,0.19293149]
[1735610489029,0.11257518,92474.0,92459.0,0.3608]
[1735610489736,0.3608,92461.0,92456.0,0.19293149]
[1735610490242,0.3608,92461.0,92448.0,0.0556]
[1735610490243,0.3608,92461.0,92449.0,0.19293149]
[1735610490433,0.11257518,92459.0,92449.0,0.19293149]
[1735610491647,0.11257518,92459.0,92448.0,0.0556]
[1735610492642,0.11357518,92459.0,92448.0,0.0556]
[1735610493339,0.11357518,92459.0,92449.0,1.5]
[1735610493539,0.001,92459.0,92449.0,1.5]
[1735610493741,0.11257518,92460.0,92449.0,1.5]
[1735610495333,0.11257518,92460.0,92451.0,0.3608]
[1735610496733,0.11257518,92460.0,92451.0,0.3628]
[1735610498849,0.11257518,92460.0,92451.0,0.002]
[1735610499038,0.3608,92452.0,92438.0,0.0539]
[1735610499239,0.11257518,92448.0,92438.0,0.0539]
[1735610500234,0.11257518,92448.0,92443.0,0.3608]
[1735610501145,0.11257518,92460.0,92443.0,0.3608]
[1735610501444,0.11257518,92460.0,92454.0,0.3608]
[1735610501838,0.11257518,92460.0,92455.0,0.109775]
[1735610502038,0.11257518,92460.0,92456.0,0.054174]
[1735610502238,0.01259684,92461.0,92456.0,0.159774]
[1735610502434,0.001,92460.0,92456.0,0.159774]
[1735610503244,0.001,92460.0,92455.0,0.0556]
[1735610503450,0.001,92460.0,92454.0,0.3608]
[1735610503951,0.01230813,92460.0,92454.0,0.3608]
[1735610504147,0.3608,92461.0,92454.0,0.3608]
[1735610504447,0.001,92460.0,92454.0,0.3608]
[1735610504834,0.3608,92461.0,92454.0,0.3608]
[1735610505039,0.3608,92461.0,92445.0,0.1649]
[1735610505249,0.11257518,92460.0,92445.0,0.1649]
[1735610505445,0.11257518,92460.0,92454.0,0.001]
[1735610505942,0.29823981,92461.0,92454.0,0.001]
[1735610506144,0.29823981,92461.0,92456.0,0.3608]
[1735610506145,0.01219602,92461.0,92456.0,0.3608]
[1735610506443,0.47337518,92470.0,92456.0,0.3608]
[1735610506952,0.47337518,92470.0,92469.0,0.054166]
[1735610506953,0.01260813,92470.0,92469.0,0.054166]
[1735610507136,0.3608,92488.0,92469.0,0.054166]
[1735610507452,0.3608,92488.0,92473.0,0.3608]
[1735610507649,0.48656,92489.0,92473.0,0.3608]
[1735610507650,0.48656,92489.0,92474.0,1.5]
[1735610507951,0.49743251,92489.0,92482.0,0.3608]
[1735610508253,0.49743251,92489.0,92483.0,0.0563]
[1735610509557,0.49743251,92489.0,92483.0,0.0573]
[1735610509857,0.008,92488.0,92483.0,0.0573]
[1735610510251,0.49883252,92489.0,92483.0,0.0573]
[1735610510554,0.49743251,92489.0,92483.0,0.0573]
[1735610511951,0.49743251,92489.0,92483.0,0.0563]
[1735610512152,0.49743251,92489.0,92483.0,0.0573]
[1735610512351,0.49743251,92489.0,92483.0,0.001]
[1735610514345,0.49843251,92489.0,92483.0,0.001]
[1735610514746,0.49743251,92489.0,92483.0,0.001]
[1735610515456,0.49743251,92489.0,92475.0,0.0545]
[1735610515757,0.3608,92486.0,92475.0,0.0545]
[1735610516751,0.3608,92486.0,92483.0,0.001]
[1735610517854,0.3608,92487.0,92483.0,0.001]
[1735610518251,0.003,92486.0,92483.0,0.001]
[1735610519059,0.003,92486.0,92475.0,0.0545]
[1735610519253,0.003,92486.0,92475.0,0.0555]
[1735610520159,0.001,92486.0,92475.0,0.0545]
[1735610521767,0.3608,92487.0,92475.0,0.0555]
[1735610525060,0.49891251,92489.0,92475.0,0.0555]
[1735610525255,0.49743251,92489.0,92481.0,0.3608]
[1735610525452,0.49743251,92489.0,92482.0,1.5]
[1735610525967,0.49743251,92489.0,92483.0,0.054158]
[1735610526168,0.49743251,92489.0,92483.0,0.164458]
[1735610526661,0.49743251,92489.0,92483.0,0.1103]
[1735610526866,0.02132762,92505.0,92497.0,0.05415]
[1735610527162,0.3608,92517.0,92504.0,0.3608]
[1735610527464,0.03326585,92526.0,92512.0,0.3608]
[1735610527665,0.48664001,92527.0,92512.0,0.3608]
[1735610527864,0.48524,92527.0,92512.0,0.3608]
[1735610528854,0.49734906,92527.0,92522.0,0.3608]
[1735610531466,0.50034906,92527.0,92522.0,0.3608]
[1735610531670,0.50034906,92527.0,92522.0,0.3618]
[1735610532969,0.49734906,92527.0,92522.0,0.3618]